[Event "Reykjavik Open 2025"]
[Site "Reykjavik"]
[Date "2025.04.14"]
[Round "8.27"]
[White "Bailet, Pierre"]
[Black "Harish, Neeraj"]
[Result "1/2-1/2"]
[Annotator "TA"]
[ECO "D02"]
[WhiteElo "2495"]
[BlackElo "2169"]
[PlyCount "103"]
[EventDate "2025.04.09"]
[EventType "swiss"]
[EventCountry "ISL"]
[SourceTitle "playchess.com"]
[Source "ChessBase"]
[SourceQuality "1"]
[TimeControl "40/5400+30:1800+30"]

{[%evp 14,103,0,10,25,8,12,20,14,16,4,14,63,59,50,50,50,35,81,82,76,68,75,75,120,118,116,115,125,113,118,120,115,95,95,63,136,89,119,85,121,101,110,120,112,89,86,70,74,63,130,89,117,114,114,114,114,114,116,106,121,0,70,0,0,0,0,0,0,0,0,-9,-9,-19,8,8,8,0,17,25,221,73,75,14,14,14,15,0,8,0,8,0]} 1. Nf3 {[%emt 0:00:17]} Nf6 {[%emt 0:00:20]} 2. g3 {[%emt 0:00:35]} g6 {[%emt 0:00:16]} 3. Bg2 {[%emt 0:00:38]} Bg7 {[%emt 0:00:19]} 4. O-O {[%emt 0:00:31]} O-O {[%emt 0:00:18]} 5. d4 {[%emt 0:00:18]} d5 {[%emt 0:00:51]} 6. c3 {[%emt 0:00:13]} c6 {[%emt 0:12:43]} 7. Nbd2 {[%emt 0:01:14]} Nbd7 {[%emt 0:02:00]} 8. Re1 {[%emt 0:00:42]} e5 {[%emt 0:08:01] Recently 8...c5 got a lot of attention. D02: 1 d4 d5 2 Nf3 sidelines, including 2...Nf6 3 g3 and 2...Nf6 3 Bf4.} 9. dxe5 {[%emt 0:14:19]} Ng4 {[%emt 0:00:16][%cal Od8b6]} 10. e4 {[%emt 0:07:11]} Ndxe5 {[%emt 0:00:54]} 11. Nxe5 {[%emt 0:02:00]} (11. exd5 {seems wilder.} Nd3 12. Re2 Qxd5 13. Nb3) 11... Nxe5 {[%emt 0:00:22]} 12. exd5 {[%emt 0:01:53]} cxd5 {[%emt 0:00:17]} (12... Bg4 $11 13. Qb3 cxd5) 13. Nb3 $14 {[%emt 0:02:51]} Bg4 {[%emt 0:02:00][%cal Bc8g4,Bg4f3,Bf3d5][%mdl 32]} 14. Qxd5 {[%emt 0:06:11]} Qxd5 {[%emt 0:03:51]} 15. Bxd5 {[%emt 0:00:06]} Nf3+ $146 {[%emt 0:00:09]} (15... Rae8 $14 16. Nd4 (16. Bxb7 $2 Nf3+ 17. Bxf3 Rxe1+ 18. Kg2 Bxf3+ 19. Kxf3 Rd8 $19) 16... Nc6 17. Rxe8 Rxe8) (15... Rad8 16. Bxb7 Bf3 17. Bf4 Bxb7 18. Bxe5 Bh6 19. Bf6 Ra8 20. Re7 Bd5 21. Nd4 Rfc8 {1-0 Mehar,C (2405)-Anadkat,K (2147) IND-ch 59th New Delhi 2022 (5)}) 16. Bxf3 $16 {[%emt 0:00:06]} Bxf3 {[%emt 0:00:05]} 17. Be3 {[%emt 0:02:18]} Rfd8 {[%emt 0:09:39]} 18. Bd4 {[%emt 0:05:22]} a5 {[%emt 0:08:16]} 19. Bxg7 {[%emt 0:01:23]} Kxg7 {[%emt 0:00:09]} 20. Nd4 {[%emt 0:00:14]} Bd5 {[%emt 0:00:20]} 21. f3 {[%emt 0:08:00]} b5 {[%emt 0:04:39]} 22. a3 {[%emt 0:05:27]} Rab8 {[%emt 0:07:47]} 23. b4 {[%emt 0:06:03]} Rdc8 {[%emt 0:11:13]} 24. Re3 {[%emt 0:04:19]} Kf6 {[%emt 0:03:44]} (24... Bc4 $14) 25. Kf2 {[%emt 0:00:43]} ({White should try} 25. bxa5 Bc4 26. Ree1) 25... h5 {[%emt 0:03:08]} 26. h4 {[%emt 0:05:21]} Rc7 {[%emt 0:02:30]} 27. Rae1 {[%emt 0:01:59]} (27. bxa5 Ra7) 27... axb4 {[%emt 0:01:03]} 28. axb4 {[%emt 0:00:17]} Ra7 {[%emt 0:00:10] Repels Ra1} 29. R1e2 {[%emt 0:03:38]} Ra3 {[%emt 0:01:51]} 30. Rd2 {[%emt 0:01:14]} Bc4 {[%emt 0:01:44]} 31. g4 {[%emt 0:03:40]} Rba8 {[%emt 0:05:13]} (31... hxg4 $14 32. fxg4 Kg7) 32. Kg3 {[%emt 0:05:58]} Ra1 {[%emt 0:01:57]} 33. gxh5 {[%emt 0:05:31]} gxh5 {[%emt 0:00:08]} 34. Kf4 {[%emt 0:02:16]} Rh1 {[%emt 0:02:26]} 35. Nf5 {[%emt 0:00:02]} Be6 {[%emt 0:00:11] [#]} 36. Rd6 $1 {[%emt 0:00:17]} Rc8 {[%emt 0:00:25]} 37. Nd4 {[%emt 0:00:24]} (37. Rb6 $16) 37... Rg8 {[%emt 0:03:20]} ({Black should play} 37... Rxh4+ $11 38. Kg3 Rh3+ 39. Kf2 Rh2+ 40. Kg1 Rd2) 38. Rexe6+ {[%emt 0:02:51]} (38. Nxb5 $2 Rxh4#) (38. Ke4 $14) 38... fxe6 $11 {[%emt 0:00:14]} 39. Rxe6+ $14 {[%emt 0:00:02][%mdl 4096] Endgame KRR-KRN} Kf7 {[%emt 0:00:18]} 40. Rb6 {[%emt 0:01:49]} Rxh4+ {[%emt 0:00:29]} 41. Kf5 {[%emt 0:30:06]} Re8 {[%emt 0:09:02]} 42. Rxb5 {[%emt 0:00:00]} Rh1 {[%emt 0:02:05]} 43. Nc6 {[%emt 0:00:00]} Rc1 {[%emt 0:07:05][%cal Oe8f8][%mdl 1024] Black has compensation.} 44. Rb7+ {[%emt 0:00:00]} Kf8 {[%emt 0:01:26]} 45. Ne5 {[%emt 0:00:00]} Rd8 {[%emt 0:04:45]} 46. c4 {[%emt 0:00:00]} Rd4 $2 {[%emt 0:02:20] [#]} (46... Kg8 $1 $11 {and Black is okay.}) 47. c5 {[%emt 0:00:00]} (47. b5 $1 $18 {[%cal Rb5b6] is the precise move to win.}) 47... h4 $16 {[%emt 0:01:07]} 48. Kf6 {[%emt 0:00:06] White is more active.} (48. c6 $16 {Strongly threatening b5.} h3 49. Rh7) 48... Rf4+ $11 {[%emt 0:02:13] The position is equal.} 49. Kg5 {[%emt 0:00:04]} (49. Ke6 $5 Re1 $8 50. c6 $11) 49... Rd4 {[%emt 0:00:15]} 50. Kf6 {[%emt 0:04:36] Intending Rb8+ and mate.} Rf4+ {[%emt 0:00:16]} 51. Kg5 {[%emt 0:00:59]} (51. Ke6 $5 Re1 $8 52. c6 $14) 51... Rd4 {[%emt 0:00:13]} 52. Kf6 {[%emt 0:01:06] Weighted Error Value: White=0.21 (precise) /Black=0.21 (precise)   Loses game:     	---       	Black=1      Mistake:       	White=5     	Black=5      Inaccurate:     	White=2     	Black=5      OK:         	White=15    	Black=16     Best:        	White=4     	Black=5      Strong:       	White=1     	---} 1/2-1/2